bitfinex-derivatives/quotes_ETHF0:USTF0_20260131
["timestamp","ask_amount","ask_price","bid_price","bid_amount"]
[1769899181119,9.48302216,2416.7,2416.4,2.47682697]
[1769899181520,9.48302216,2416.6,2416.4,2.47682697]
[1769899181820,9.48302216,2416.7,2416.5,2.47682697]
[1769899182021,9.48302216,2416.8,2416.5,2.47682697]
[1769899182220,9.48302216,2416.6,2416.5,2.47682697]
[1769899182719,0.07424604,2416.6,2416.2,1.59767353]
[1769899182920,0.15381059,2417.0,2416.4,2.47597351]
[1769899183124,0.15011369,2416.8,2416.4,2.47597351]
[1769899183423,0.07424604,2416.7,2416.1,0.15280221]
[1769899185426,0.15011369,2417.1,2416.1,0.15280221]
[1769899186124,0.15011369,2416.9,2416.1,0.15280221]
[1769899186528,0.07424604,2416.8,2416.1,0.15280221]
[1769899190229,0.07424604,2416.8,2416.2,3.84422611]
[1769899190431,0.07424604,2416.8,2416.4,0.14839314]
[1769899191845,0.07424604,2416.8,2416.5,3.84434732]
[1769899192136,0.00476573,2417.4,2416.4,0.14839314]
[1769899192338,0.00476573,2417.4,2416.7,0.14839314]
[1769899192548,0.00476573,2417.4,2416.9,0.14839314]
[1769899193040,0.15011369,2417.7,2416.9,0.14839314]
[1769899194045,0.15452876,2417.7,2416.9,0.14839314]
[1769899195645,0.15452876,2417.7,2417.0,3.81683128]
[1769899195840,0.15452876,2417.7,2416.9,0.14839314]
[1769899196041,0.00441507,2417.7,2417.1,0.14839314]
[1769899197747,0.15011369,2418.2,2417.2,3.81383212]
[1769899197947,0.15011369,2418.2,2416.7,0.20716]
[1769899197948,0.15011369,2418.2,2417.3,0.14839314]
[1769899198447,0.35708369,2419.0,2417.5,0.14839314]
[1769899198648,0.35708369,2419.0,2417.7,0.14839314]
[1769899198848,0.15011369,2418.9,2417.9,0.14839314]
[1769899199148,0.15011369,2418.9,2417.7,0.14839314]
[1769899199347,0.15011369,2418.9,2417.9,0.14839314]
[1769899200146,0.62243007,2418.9,2417.9,0.14839314]
[1769899200648,0.15011369,2418.8,2417.9,0.14839314]
[1769899201943,0.15011369,2418.8,2417.4,0.21145557]
[1769899201944,0.15011369,2418.4,2417.4,0.00434557]
[1769899202149,0.15011369,2418.2,2417.4,0.00434557]
[1769899202448,0.15011369,2418.1,2417.4,0.00434557]
[1769899205352,0.15011369,2418.0,2416.9,3.8050526]
[1769899205649,0.15011369,2418.0,2416.8,0.14839314]
[1769899205650,0.15011369,2418.0,2416.7,3.8050526]
[1769899205848,0.15011369,2418.0,2416.6,3.95344574]
[1769899206049,0.15011369,2418.0,2416.7,3.8050526]
[1769899206239,0.15011369,2418.0,2416.7,3.80895614]
[1769899206644,0.15011369,2418.0,2416.7,0.00390354]
[1769899207748,0.16065658,2417.8,2416.7,0.00390354]
[1769899209552,0.36773658,2417.8,2416.7,0.00390354]
[1769899209755,0.16065658,2417.7,2416.7,0.00390354]
[1769899209948,0.16065658,2417.4,2416.7,0.00390354]
[1769899213052,0.16065658,2417.4,2416.7,0.15229927]
[1769899213255,0.16065658,2417.7,2416.7,0.15229927]
[1769899215559,0.16065658,2417.7,2416.8,0.14839573]
[1769899216452,2.428,2417.8,2416.9,0.14839573]
[1769899216760,3.88665658,2417.9,2417.1,0.14839573]
[1769899216961,3.88665658,2417.9,2417.2,4.06121066]
[1769899217255,0.16065658,2418.2,2417.2,0.14839573]
[1769899217457,0.16065658,2418.8,2417.6,0.14839573]
[1769899217661,0.47231638,2418.9,2417.8,0.14839573]
[1769899217961,0.00530606,2419.0,2418.0,0.14839573]
[1769899218157,0.00530606,2419.0,2418.0,4.05471382]
[1769899218352,0.00530606,2419.0,2418.0,0.14839573]
[1769899218757,0.00530606,2419.0,2418.2,0.14839573]
[1769899219062,0.00530606,2419.0,2418.3,0.14839573]
[1769899219861,0.66173006,2419.4,2418.4,0.14839573]
[1769899220661,0.66581956,2419.4,2418.4,0.15204157]
[1769899221556,0.50516298,2419.4,2418.4,0.15204157]
[1769899222564,0.0040895,2419.4,2418.4,0.15204157]
[1769899223359,0.0040895,2419.4,2418.5,0.14839573]
[1769899224358,0.36760658,2419.3,2418.4,0.00364584]
[1769899224560,0.16065658,2419.2,2418.4,0.00364584]
[1769899224862,0.16065658,2419.1,2418.4,0.00364584]
[1769899228265,0.16065658,2419.1,2417.8,0.14839573]
[1769899228669,0.16065658,2418.9,2417.8,0.14839573]
[1769899228859,0.36763658,2418.9,2417.5,2.57539573]
[1769899229060,0.16065658,2418.8,2417.5,2.57539573]
[1769899229365,0.16065658,2418.8,2417.5,2.57948121]
[1769899230264,0.16065658,2418.7,2417.5,2.57948121]
[1769899230865,0.16065658,2418.7,2417.5,0.15248121]
[1769899231161,0.20701,2418.6,2417.5,0.00408548]
[1769899231365,0.16065658,2418.4,2417.5,0.00408548]
[1769899232563,0.36769658,2418.2,2417.5,0.00408548]
[1769899232764,0.16065658,2418.1,2417.5,0.00408548]
[1769899233065,0.16065658,2418.4,2417.5,0.15248121]
[1769899235168,0.16065658,2418.6,2417.5,0.15248121]
[1769899236360,0.207,2418.7,2417.5,0.15248121]
[1769899236568,0.20696,2419.2,2417.9,0.14839573]
[1769899236766,0.36761658,2419.2,2418.0,0.14839573]
[1769899236968,0.16065658,2419.1,2418.0,0.14839573]
[1769899240071,0.15224519,2419.0,2418.0,0.14839573]
[1769899240265,0.15224519,2418.8,2417.6,7.74181177]
[1769899240667,0.15224519,2418.7,2417.5,0.00408548]
[1769899241466,0.35924519,2418.7,2417.5,0.00408548]
[1769899241667,0.1598688,2418.6,2417.5,0.00408548]
[1769899242271,0.1598688,2418.4,2417.5,0.00408548]
[1769899246074,0.1598688,2418.4,2417.5,3.92068704]
[1769899246669,0.1598688,2418.4,2417.5,3.92084756]
[1769899247072,0.1598688,2418.4,2417.5,0.00408548]
[1769899249173,0.20704,2418.2,2417.5,0.00408548]
[1769899249369,0.1598688,2418.1,2417.5,0.00408548]
[1769899258278,0.1598688,2417.8,2417.1,2.46909792]
[1769899258478,0.1598688,2417.8,2417.0,2.61525205]
[1769899259185,0.1598688,2417.8,2417.0,2.61932914]
[1769899260082,0.1598688,2417.8,2417.0,2.47317501]
[1769899260278,0.1598688,2417.8,2417.0,0.15023122]
[1769899260478,0.1598688,2417.8,2417.0,2.61932914]
[1769899261384,0.3669488,2417.8,2417.0,0.00407709]
[1769899261581,0.1598688,2417.5,2417.0,0.00407709]
[1769899261781,0.16511754,2417.5,2416.7,2.46909792]
[1769899262175,0.16511754,2417.5,2416.6,2.61525205]
[1769899262582,0.16511754,2417.5,2416.7,0.14615413]
[1769899262874,0.16511754,2417.5,2416.7,0.15037686]
[1769899263283,0.16511754,2417.5,2416.7,4.12211996]
[1769899263476,0.16511754,2417.5,2416.7,0.15037686]
[1769899266484,0.16511754,2417.5,2416.3,2.46909792]
[1769899266485,0.1598688,2417.1,2416.3,2.46909792]
[1769899266689,0.1598688,2417.0,2416.1,3.9556779]
[1769899266885,0.1598688,2417.0,2416.0,2.61525205]
[1769899267088,0.1598688,2417.0,2416.1,3.95832105]
[1769899267287,0.1598688,2417.0,2416.0,2.61525205]
[1769899267488,0.1598688,2417.0,2416.0,2.62022925]
[1769899267692,0.35814931,2416.9,2416.0,0.0049772]
[1769899267890,0.15099931,2416.8,2416.0,0.0049772]
[1769899271196,0.35816931,2416.7,2416.0,0.0049772]
[1769899271397,0.35819931,2416.4,2415.5,6.38098302]
[1769899271591,0.15099931,2416.3,2415.3,2.46909792]
[1769899271790,0.15099931,2416.3,2415.3,6.5320945]
[1769899272094,0.15099931,2416.3,2415.3,2.6202094]
[1769899272285,0.15099931,2416.2,2415.3,0.1550724]
[1769899272487,0.51406487,2416.2,2415.3,0.1550724]
[1769899272697,0.15099931,2416.1,2415.3,0.1550724]
[1769899272891,0.15099931,2416.1,2415.3,4.17330742]
[1769899273087,0.15099931,2416.1,2415.3,0.1550724]
[1769899275300,0.15099931,2416.1,2415.3,0.00396092]
[1769899275301,0.15099931,2416.0,2415.3,0.00396092]
[1769899275702,0.50694115,2416.2,2414.7,6.48486034]
[1769899275703,0.15099931,2415.8,2414.7,6.48486034]
[1769899275897,0.15099931,2415.6,2414.5,0.15111148]
[1769899276790,0.15099931,2415.4,2414.5,0.15619247]
[1769899276995,0.15099931,2415.2,2414.5,0.00508099]
[1769899277998,0.00500462,2415.6,2413.8,2.46909792]
[1769899277999,0.15099931,2415.0,2413.8,2.46909792]
[1769899278202,0.15099931,2414.9,2413.9,0.15111148]
[1769899279100,0.15099931,2414.9,2413.9,0.15484834]
[1769899280093,0.15099931,2415.3,2413.9,0.15484834]
[1769899283606,0.15099931,2415.2,2413.9,0.15484834]
[1769899283999,0.15099931,2415.1,2413.9,0.15484834]
[1769899284203,0.15099931,2415.0,2413.9,0.15484834]
[1769899287108,0.15099931,2414.9,2414.0,0.15111148]
[1769899287308,0.35832931,2414.8,2414.0,0.15111148]
[1769899288200,0.15099931,2414.7,2414.0,0.15111148]
[1769899289407,0.35833931,2414.7,2414.0,0.15111148]
[1769899289806,0.15099931,2414.6,2413.9,0.00373686]
[1769899291704,0.35834931,2414.6,2413.9,0.00373686]
[1769899291912,0.15099931,2414.5,2413.9,0.00373686]
[1769899292206,0.15099931,2414.5,2413.5,0.15111148]
[1769899293206,0.15099931,2414.5,2413.5,0.15445038]
[1769899295209,0.15099931,2414.5,2413.5,2.6235483]
[1769899295911,0.15099931,2414.5,2413.5,0.15445038]
[1769899296108,0.15099931,2414.5,2413.5,6.63931072]
[1769899296510,0.15099931,2414.5,2413.6,4.1668739]
[1769899297212,0.15099931,2414.5,2413.6,0.15111148]
[1769899297813,0.15099931,2414.5,2413.6,4.1668739]
[1769899298112,0.15099931,2414.5,2413.6,6.63597182]
[1769899298305,0.15099931,2414.5,2413.7,0.16142904]
[1769899299107,0.15099931,2414.5,2413.7,4.16752596]
[1769899299506,0.15099931,2414.5,2413.7,4.16214982]
[1769899299708,0.15099931,2414.5,2413.8,0.16142904]
[1769899302714,0.16024452,2414.7,2413.8,0.16142904]
[1769899302907,3.89024452,2415.0,2414.2,0.15937192]
[1769899303108,0.16024452,2414.9,2414.3,3.93996779]
[1769899303310,0.16024452,2414.9,2414.1,2.46909792]
[1769899304507,0.16024452,2414.8,2414.0,2.46909792]
[1769899304709,0.16024452,2414.7,2413.8,2.46909792]
[1769899304911,0.16024452,2414.6,2413.8,2.46909792]
[1769899305108,0.16024452,2414.6,2413.9,3.88758574]
[1769899305313,0.16024452,2414.6,2413.8,2.46909792]
[1769899305516,0.16024452,2414.6,2413.9,3.88756906]
[1769899305719,0.16024452,2414.6,2413.8,2.46909792]
[1769899305917,0.16024452,2414.6,2413.9,3.88752214]
[1769899306118,0.16024452,2414.6,2413.9,2.46909792]
[1769899307320,0.16024452,2414.6,2413.9,2.62846984]
[1769899307715,0.16024452,2414.6,2413.9,2.63954414]
[1769899307916,0.16024452,2414.6,2413.9,2.48017222]
[1769899308517,0.16024452,2414.5,2413.9,2.48017222]
[1769899309222,0.16024452,2414.5,2413.8,2.48017222]
[1769899310724,0.16024452,2414.5,2413.7,2.48017222]
[1769899310919,0.16024452,2414.4,2413.8,3.84942514]
[1769899311125,0.16024452,2414.4,2413.5,2.48351112]
[1769899311316,0.16024452,2414.4,2413.5,2.64288304]
[1769899312526,0.16024452,2414.4,2413.6,0.15937192]
[1769899313622,0.36763452,2414.1,2413.5,0.0033389]
[1769899313823,2.431,2414.7,2413.1,4.93544515]
[1769899313824,0.16024452,2413.7,2413.1,2.48017222]
[1769899314030,0.16024452,2413.6,2413.0,3.78258364]
[1769899314325,0.16024452,2413.6,2412.8,2.48017222]
[1769899314523,0.16024452,2413.4,2412.6,2.63954414]
[1769899314727,0.16024452,2413.3,2412.6,2.64443158]
[1769899315126,0.16024452,2413.3,2412.6,0.00488744]
[1769899315127,0.36771452,2413.3,2412.6,0.00488744]
[1769899315323,0.16024452,2413.2,2412.3,2.63954414]
[1769899315524,0.16024452,2413.2,2412.3,0.15937192]
[1769899315725,0.16024452,2412.9,2412.0,2.48017222]
[1769899315926,0.16024452,2412.8,2412.0,2.48017222]
[1769899316125,0.68134324,2412.8,2411.9,6.40018987]
[1769899316430,0.16024452,2412.7,2411.9,0.16276304]
[1769899316630,0.52109872,2412.8,2411.9,0.16276304]
[1769899316830,0.00417014,2413.4,2412.2,0.15937192]
[1769899317028,0.00417014,2413.4,2412.5,0.15937192]
[1769899317225,0.00417014,2413.4,2412.5,6.40018987]
[1769899317426,2.432,2413.8,2412.8,0.15937192]
[1769899318026,2.432,2413.8,2412.9,0.15937192]
[1769899318231,3.731,2413.9,2413.0,0.15937192]
[1769899318432,4.25828758,2413.9,2413.2,0.15937192]
[1769899318732,0.16177625,2414.6,2413.4,2.48017222]
[1769899318924,0.20734,2414.7,2413.4,6.24081795]
[1769899319130,0.20734,2414.7,2413.6,2.48017222]
[1769899319433,0.16177625,2414.9,2413.6,6.24081795]
[1769899319632,0.00456508,2414.9,2413.7,6.24081795]
[1769899319832,0.00456508,2414.9,2413.8,6.24081795]
[1769899320032,0.52448415,2414.9,2414.0,2.48017222]
[1769899320233,0.52448415,2414.9,2414.1,6.24081795]
[1769899320428,0.16177625,2415.2,2414.2,3.76064573]
[1769899320629,0.16693005,2415.5,2414.3,6.24081795]
[1769899320829,0.16693005,2415.5,2414.4,6.24081795]
[1769899321033,0.20724,2415.9,2414.4,6.24081795]
[1769899321034,0.16693005,2415.8,2414.5,6.24081795]
[1769899321232,0.16693005,2416.1,2414.7,2.48017222]
[1769899321437,0.51735144,2416.1,2414.9,2.48017222]
[1769899321629,0.51735144,2416.1,2414.8,3.76064573]
[1769899321630,0.51735144,2416.1,2415.0,6.24081795]
[1769899321832,0.51735144,2416.1,2415.3,2.46983951]
[1769899322132,0.00451308,2416.1,2415.3,2.47276515]
[1769899322329,2.432,2416.8,2415.3,0.00292564]
[1769899322526,3.732,2417.1,2415.6,2.46983951]
[1769899322723,3.732,2417.1,2415.7,2.46983951]
[1769899322724,3.9011549,2417.1,2415.7,2.46983951]
[1769899322924,4.42072443,2417.1,2415.7,2.46983951]
[1769899323234,0.1691549,2417.0,2415.6,2.46983951]
[1769899323436,0.17429774,2417.0,2415.6,2.46983951]
[1769899323636,0.17429774,2417.0,2415.7,2.46983951]
[1769899324335,0.17429774,2417.0,2415.6,2.46983951]
[1769899324536,0.17429774,2417.0,2415.5,2.46983951]
[1769899324735,0.17429774,2417.0,2415.6,2.46983951]
[1769899324937,0.17429774,2417.0,2415.5,2.46983951]
[1769899325436,0.17429774,2417.0,2415.4,6.64883951]
[1769899325634,0.00514284,2417.0,2415.5,2.46983951]
[1769899326240,0.17463766,2417.0,2415.4,6.64883951]
[1769899326634,0.17463766,2417.0,2415.5,2.46983951]
[1769899326836,0.00514284,2417.0,2415.6,2.46983951]
[1769899327037,0.00514284,2417.0,2415.7,2.46983951]
[1769899327240,0.00514284,2417.0,2415.6,2.46983951]
[1769899327637,0.00514284,2417.0,2415.7,2.46983951]
[1769899328236,0.00514284,2417.0,2415.6,2.46983951]
[1769899328539,0.17435634,2417.0,2415.6,2.46983951]
[1769899328735,0.17435634,2417.0,2415.4,2.46983951]
[1769899329040,0.17435634,2417.0,2415.3,3.73292564]
[1769899330640,0.00514284,2417.0,2415.3,6.20276515]
[1769899331041,0.00514284,2417.0,2415.4,2.46983951]
[1769899331241,0.00514284,2417.0,2415.3,6.20276515]
[1769899331942,0.00514284,2417.0,2415.4,2.46983951]
[1769899334138,0.17315742,2417.0,2415.4,2.46983951]
[1769899334339,0.17315742,2417.0,2415.3,3.73292564]
[1769899334648,0.16801458,2416.5,2415.3,3.73292564]
[1769899334943,3.73414284,2417.0,2414.6,2.43]
[1769899334944,0.16801458,2416.3,2414.6,2.43]
[1769899335138,0.16801458,2416.2,2414.6,2.43]
[1769899335542,3.73414284,2417.0,2414.6,2.43]
[1769899335745,0.16801458,2417.9,2415.7,2.46983951]
[1769899336037,0.20702,2418.4,2415.7,2.46983951]
[1769899336038,0.16801458,2418.3,2415.9,2.46983951]
[1769899336242,0.16801458,2418.3,2415.8,11.24652793]
[1769899336243,0.16801458,2418.3,2415.8,9.99783951]
[1769899336439,0.16801458,2418.3,2415.9,2.46983951]
[1769899336640,0.16801458,2418.3,2416.0,2.46983951]
[1769899336833,0.16801458,2418.3,2416.0,2.47278648]
[1769899336834,0.16815592,2418.2,2416.0,2.47278648]
[1769899337036,0.16815592,2418.2,2416.0,0.00294697]
[1769899339042,0.16815592,2418.2,2416.0,2.47278648]
[1769899339238,0.16815592,2418.2,2416.0,0.00294697]
[1769899339446,0.16815592,2418.2,2416.0,2.47278648]
[1769899340245,0.16815592,2418.2,2416.0,0.00294697]
[1769899342050,0.16877498,2418.0,2416.0,0.00294697]
[1769899342448,0.16877498,2417.8,2416.0,0.00294697]
[1769899345150,0.16877498,2417.8,2416.0,2.47278648]
[1769899345747,0.15698583,2417.1,2415.3,7.5246232]
[1769899345952,0.15698583,2416.8,2415.3,0.14584071]
[1769899346450,0.15698583,2416.8,2415.1,3.71852793]
[1769899346651,0.15698583,2416.8,2415.0,6.99736864]
[1769899346847,0.15698583,2416.8,2415.1,0.14584071]
[1769899347243,0.15698583,2416.8,2415.2,3.71852793]
[1769899348152,0.15698583,2416.8,2415.4,3.71852793]
[1769899348447,0.15698583,2416.8,2415.5,7.77863589]
[1769899348752,0.15698583,2416.8,2415.7,0.14584071]
[1769899348951,0.15698583,2416.8,2415.8,0.14584071]
[1769899349152,0.15698583,2416.8,2415.9,3.91426725]
[1769899349453,0.15698583,2416.8,2415.8,0.14584071]
[1769899349652,0.15698583,2416.8,2415.9,3.92354943]
[1769899349852,0.15698583,2416.8,2415.8,3.86436864]
[1769899350052,0.15698583,2416.8,2415.9,3.92343066]
[1769899350253,0.15698583,2416.8,2415.8,3.86436864]
[1769899350548,2.429,2416.9,2416.0,3.86436864]
[1769899350748,0.15698583,2417.1,2416.1,7.78794789]
[1769899350953,0.15698583,2417.1,2416.2,7.78794789]
[1769899351154,0.15698583,2417.1,2416.3,3.92357925]
[1769899351353,0.15698583,2417.1,2416.2,3.86436864]
[1769899351550,0.15698583,2417.1,2416.1,4.93544515]
[1769899351754,0.36412583,2417.1,2415.9,4.93544515]
[1769899351956,0.15698583,2417.0,2415.9,4.93544515]
[1769899352550,0.15698583,2417.0,2415.7,5.08128586]
[1769899352751,0.15698583,2417.0,2415.7,0.14584071]
[1769899354258,0.15698583,2417.0,2415.4,3.728]
[1769899354558,0.15698583,2416.5,2415.1,0.14584071]
[1769899354759,0.15698583,2416.4,2415.1,0.14584071]
[1769899355749,0.15698583,2416.4,2415.0,0.00380008]
[1769899355952,0.15698583,2416.0,2415.0,0.00380008]
[1769899356149,0.15698583,2415.9,2414.3,3.728]
[1769899356354,0.15698583,2415.8,2414.2,0.14584071]
[1769899356654,0.15698583,2415.6,2414.0,4.93544515]
[1769899356849,0.15698583,2415.6,2413.9,5.08128586]
[1769899356850,0.36424583,2415.6,2413.9,5.08128586]
[1769899357051,0.15701513,2415.5,2413.9,0.14875239]
[1769899357656,0.15701513,2415.2,2413.9,0.00291168]
[1769899359264,0.15701513,2415.2,2413.9,0.16192035]
[1769899359456,0.15701513,2415.8,2413.9,0.16192035]
[1769899359654,0.15701513,2415.6,2413.9,0.16192035]
[1769899361564,0.15701513,2415.6,2414.0,0.15704928]
[1769899364163,0.15138263,2415.9,2414.0,0.15704928]
[1769899364361,0.20723,2416.0,2414.0,0.15704928]
[1769899364556,0.15138263,2415.9,2414.3,0.15704928]
[1769899364761,0.15138263,2415.8,2414.3,0.15704928]
[1769899364961,0.15138263,2415.7,2414.3,0.15704928]
[1769899365661,0.35864263,2415.7,2414.3,0.15704928]
[1769899365863,0.15138263,2415.5,2414.0,0.15704928]
[1769899367262,0.15138263,2415.4,2414.0,0.15704928]
[1769899371666,0.20727,2415.5,2414.0,0.15704928]
[1769899372662,0.35865263,2415.5,2414.0,0.15704928]
[1769899372867,0.15138263,2415.4,2414.1,0.15704928]
[1769899375366,0.15138263,2415.4,2414.2,0.15704928]
[1769899376270,0.15138263,2415.4,2414.3,0.15704928]
[1769899376472,0.15138263,2415.4,2414.4,0.15704928]
[1769899378869,0.15138263,2415.4,2414.4,3.86913981]
[1769899379067,0.15138263,2415.4,2414.4,0.15704928]
[1769899379267,0.15138263,2415.4,2414.4,3.86913981]
[1769899379467,0.15138263,2415.4,2414.5,0.15704928]
[1769899380169,0.15138263,2415.4,2414.5,3.86913981]
[1769899380369,0.15138263,2415.4,2414.5,0.15704928]
[1769899380670,0.15138263,2415.4,2414.5,3.86913981]
[1769899380872,0.15138263,2415.4,2414.5,0.15704928]
[1769899381071,0.15138263,2415.4,2414.5,3.86913981]
[1769899381371,0.15138263,2415.4,2414.6,3.71209053]
[1769899382373,0.15138263,2415.4,2414.7,3.71209053]
[1769899382578,0.15138263,2415.4,2414.8,3.71209053]
[1769899382773,0.15138263,2415.4,2414.5,3.86611012]
[1769899382972,0.15138263,2415.4,2414.6,3.8215462]
[1769899383173,0.15138263,2415.4,2414.5,3.86611012]
[1769899383371,0.15138263,2415.3,2414.4,3.70906084]
[1769899383572,0.15138263,2415.3,2414.5,3.82601073]
[1769899383767,0.15138263,2415.3,2414.4,3.70906084]
[1769899383768,0.35866263,2415.4,2414.6,3.98281784]
[1769899383973,0.35866263,2415.4,2414.6,0.15704928]
[1769899384372,0.15138263,2415.4,2414.7,7.53847546]
[1769899384572,0.15138263,2415.7,2414.8,3.9864639]
[1769899384771,0.15138263,2415.7,2414.8,0.15704928]
[1769899384970,0.15138263,2415.7,2414.9,3.81167985]
[1769899385274,0.15138263,2415.7,2414.8,3.86611012]
[1769899385584,0.15138263,2415.7,2414.9,3.81278112]
[1769899385778,0.15138263,2415.7,2414.8,3.86611012]
[1769899385976,0.15138263,2415.7,2414.9,3.81276208]
[1769899386172,0.15138263,2415.7,2414.8,0.15704928]
[1769899386372,0.15138263,2415.7,2414.9,3.81293738]
[1769899386573,0.15138263,2415.7,2414.8,0.15704928]
[1769899386773,0.15138263,2415.7,2414.9,3.81274323]
[1769899386973,0.15138263,2415.7,2414.8,3.86611012]
[1769899387173,0.15138263,2415.7,2414.9,3.81258281]
[1769899387369,0.15138263,2415.7,2414.9,0.15189495]
[1769899388279,0.15138263,2415.7,2415.0,3.81459038]
[1769899388470,0.04544072,2415.9,2414.9,0.15189495]
[1769899388777,0.15240795,2416.5,2415.7,3.83069284]
[1769899388977,0.15240795,2416.5,2415.8,7.52369945]
[1769899389179,0.00293238,2416.5,2415.9,3.93627061]
[1769899389369,0.14947557,2416.8,2415.9,0.121632]
[1769899389681,0.14947557,2416.8,2416.0,3.94880299]
[1769899389880,0.14947557,2416.8,2416.0,0.121632]
[1769899390179,0.14947557,2416.8,2415.9,3.70906084]
[1769899390380,0.15290653,2416.8,2416.0,3.82269168]
[1769899390577,0.15290653,2416.8,2415.9,3.82298865]
[1769899390775,0.14947557,2416.6,2415.7,0.0052293]
[1769899390976,0.35665557,2416.6,2415.7,0.0052293]
[1769899391280,0.14947557,2416.5,2415.7,0.0052293]
[1769899399184,0.14947557,2416.5,2415.3,3.70906084]
[1769899399384,0.14947557,2416.5,2415.4,3.91490394]
[1769899399585,0.14947557,2416.5,2415.3,7.54606084]
[1769899399784,0.14947557,2416.3,2415.4,3.91489596]
[1769899399987,0.14947557,2416.3,2415.3,3.837]
[1769899400186,0.14947557,2416.3,2415.3,3.84087064]
[1769899400682,0.14947557,2416.3,2415.3,7.75634093]
[1769899400882,0.14947557,2416.3,2415.3,3.84087064]
[1769899401082,0.14947557,2416.3,2415.3,7.75634093]
[1769899401283,0.14947557,2416.3,2415.3,3.84087064]
[1769899401483,0.14947557,2416.3,2415.3,7.75634093]
[1769899401685,0.14947557,2416.3,2415.3,3.84087064]
[1769899401885,0.14947557,2416.3,2415.3,7.75634093]
[1769899402086,0.14947557,2416.3,2415.3,3.84087064]
[1769899404693,0.14947557,2416.3,2415.3,0.00387064]
[1769899406691,0.14947557,2416.0,2415.1,2.47403889]
[1769899407087,0.20722,2416.1,2415.1,2.58833146]
[1769899407292,0.20722,2416.1,2415.3,0.11429257]
[1769899407687,0.20722,2416.1,2415.3,0.11844926]
[1769899407888,0.20722,2416.1,2415.4,3.96211124]
[1769899408094,0.35669557,2416.1,2415.3,2.59248815]
[1769899408287,0.35669557,2416.1,2415.4,3.96210949]
[1769899408493,0.35669557,2416.1,2415.3,2.59248815]
[1769899408694,0.35669557,2416.1,2415.4,3.96254783]
[1769899408996,0.35669557,2416.1,2415.3,2.59248815]
[1769899409193,0.35669557,2416.1,2415.4,3.95997815]
[1769899409399,0.35669557,2416.1,2415.4,2.47403889]
[1769899409999,0.35669557,2416.1,2415.5,3.9601797]
[1769899410196,0.35669557,2416.1,2415.4,2.47403889]
[1769899410398,0.14947557,2416.0,2415.3,2.47819558]
[1769899410598,0.14947557,2416.0,2415.4,3.96066424]
[1769899410799,0.14947557,2416.0,2415.3,2.47985883]
[1769899414398,0.14947557,2416.0,2415.4,3.95641267]
[1769899414603,0.14947557,2416.0,2415.3,2.47985883]
[1769899415499,0.14947557,2416.0,2415.4,3.95747613]
[1769899415700,0.14947557,2416.0,2415.3,2.47985883]
[1769899416005,0.14947557,2416.0,2415.3,0.00415669]
[1769899416800,0.14947557,2416.0,2415.3,2.47985883]
[1769899417000,0.14947557,2416.0,2415.3,0.00415669]
[1769899417901,0.20722,2416.1,2415.3,2.67465816]
[1769899418102,0.20722,2416.1,2415.4,0.19479933]
[1769899419702,0.40223008,2416.1,2415.4,0.19479933]
[1769899420208,0.40223008,2416.1,2415.4,2.67050147]
[1769899420911,0.40223008,2416.1,2415.4,0.19479933]
[1769899421311,0.40223008,2416.1,2415.4,2.67050147]
[1769899421512,0.40223008,2416.1,2415.4,0.19479933]
[1769899421713,0.34330332,2415.9,2415.1,3.70906084]
[1769899422009,0.34330332,2415.7,2415.0,3.70906084]
[1769899422211,0.34330332,2415.7,2415.1,3.92200651]
[1769899422410,0.34330332,2415.7,2415.0,3.70906084]
[1769899422609,0.34330332,2415.7,2415.1,3.92142171]
[1769899422810,0.34330332,2415.7,2415.1,0.00414607]
[1769899423508,0.34330332,2415.6,2414.9,3.70906084]
[1769899423806,0.34330332,2415.4,2414.3,5.28295008]
[1769899424012,0.34330332,2415.3,2414.4,3.79626627]
[1769899424209,0.34330332,2415.3,2414.5,3.79626627]
[1769899424409,0.34330332,2415.3,2414.3,0.33917372]
[1769899424713,0.34330332,2415.3,2414.5,0.33917372]
[1769899426515,0.34330332,2415.3,2414.3,0.34225688]
[1769899426704,0.34330332,2415.3,2414.4,3.73149461]
[1769899426907,0.34330332,2415.3,2414.3,0.34225688]
[1769899427110,0.34330332,2415.3,2414.4,3.73150935]
[1769899427404,0.34330332,2415.3,2414.5,3.73150935]
[1769899427604,0.07208036,2415.8,2414.4,2.81452086]
[1769899427605,0.34330332,2415.1,2414.4,2.81452086]
[1769899427808,0.34639778,2415.1,2414.3,0.00308316]
[1769899428016,0.55370778,2415.1,2414.3,0.00308316]
[1769899428214,0.34330332,2415.0,2414.3,0.00308316]
[1769899429811,0.55063332,2414.9,2414.3,0.00308316]
[1769899430011,0.34330332,2414.8,2414.3,0.00308316]
[1769899430511,0.34330332,2414.8,2413.9,0.33917372]
[1769899430816,0.34330332,2414.6,2413.6,0.33917372]
[1769899431612,0.34330332,2414.5,2413.6,0.34375025]
[1769899435717,0.34330332,2415.0,2413.6,0.34375025]
[1769899435912,0.21040446,2415.1,2413.6,0.34375025]
[1769899436218,0.76464253,2415.1,2413.7,0.33917372]
[1769899436616,0.76464253,2415.1,2413.8,0.33917372]
[1769899437619,0.21040446,2415.1,2414.0,0.33917372]
[1769899438320,0.21040446,2415.1,2414.1,0.33917372]
[1769899438718,0.75976577,2415.1,2414.1,0.33917372]
[1769899439118,0.21040446,2415.1,2414.1,0.33917372]
[1769899439713,0.21040446,2415.1,2414.3,0.33917372]
[1769899441524,0.21040446,2415.1,2414.4,0.33917372]
[1769899441727,0.00309446,2415.1,2414.4,0.33917372]
[1769899442026,0.34330332,2415.0,2414.3,4.13522685]
[1769899442221,0.53650047,2415.1,2414.4,0.33917372]
[1769899442526,0.00309446,2415.1,2414.4,0.33917372]
[1769899443326,0.00309446,2415.1,2414.5,4.13522685]
[1769899443513,0.00309446,2415.1,2414.5,0.33917372]
[1769899443719,0.00309446,2415.1,2414.6,0.33917372]
[1769899444422,0.34639778,2415.1,2414.5,3.79605313]
[1769899444621,0.34639778,2415.1,2414.5,4.13522685]
[1769899444822,0.34639778,2415.1,2414.5,0.33917372]
[1769899445222,0.34639778,2415.1,2414.5,4.13522685]
[1769899445422,0.34639778,2415.1,2414.5,0.33917372]
[1769899445720,0.34639778,2415.1,2414.4,4.13522685]
[1769899445924,0.34639778,2415.1,2414.5,3.79605313]
[1769899446123,0.89738564,2415.1,2414.5,3.79605313]
[1769899446626,0.89738564,2415.1,2414.4,0.33917372]
[1769899446819,0.89738564,2415.1,2414.4,4.2698662]
[1769899447020,0.89738564,2415.1,2414.4,0.33917372]
[1769899447418,0.89738564,2415.1,2414.4,4.2698662]
[1769899447618,0.89738564,2415.1,2414.4,0.33917372]
[1769899448018,0.89738564,2415.1,2414.4,4.27072391]
[1769899448218,0.89738564,2415.1,2414.4,0.33917372]
[1769899449724,0.55408232,2415.1,2414.5,1.12144623]
[1769899450022,1.68432982,2415.1,2414.5,1.12144623]
[1769899450217,1.68432982,2415.1,2414.3,4.95844623]
[1769899450524,1.68432982,2415.1,2414.4,3.91291616]
[1769899450723,1.68432982,2415.1,2414.3,4.95844623]
[1769899450925,1.68432982,2415.1,2414.4,5.03485722]
[1769899451122,0.55408232,2415.1,2414.4,1.12144623]